{"text_format":"2","workbook":"xlsx","n_sheets":8,"sheets":["RESUMO DO ORÇAMENTO","ORÇAMENTO ","CPUs","MEMÓRIA DE CÁLCULO GERAL","Cronograma Físico-financeiro","BDI","BDI FORN.","ENCARGOS SOCIAIS"],"not_rendered":{"charts":0,"images":1,"macros":0,"external_links":0,"defined_names":71,"comments":0,"pivot_tables":0},"unopened":[],"bounds":{"document_bytes":16777216,"sheet_cells":100000,"run_cost":"one","rows_first":2000,"rows_last":500,"rows_between":2000,"halvings":0,"cell_chars":16384,"cell_head_chars":4096},"cells_cut":0,"cells_raw":0,"read":"whole","date_system":"1900"}

{"sheet":"RESUMO DO ORÇAMENTO","index":0,"n_rows":12,"n_cols":8,"rows_kept":12,"cut":false,"hidden":false,"merged":[[5,0,5,7],[7,1,7,4],[9,1,9,4]]}
["SERVIÇO: Execução de CBUQ em vias públicas - SRP",{"$nulls":5},"DATA BASE: "]
["LOCAL: MUNICÍPIOS DIVERSOS, ESTADO DE SERGIPE",{"$nulls":5},"BDI:",{"$f":"BDI!C33","v":0}]
[{"$nulls":6},"BDI FORNECIMENTO:",{"$f":"'BDI FORN.'!C33","v":0}]
[{"$nulls":7},"Não Desonerado; Horista:  ; Mensalista:  "]
[]
["DOCUMENTO: PLANILHA ORÇAMENTÁRIA DE SERVIÇOS – RESUMO"]
[]
["ITEM","DESCRIÇÃO",null,null,null,"QUANTIDADE (M²)","PREÇO UNIT.","PREÇO TOTAL"]
[]
[1,"PAVIMENTAÇÃO ASFÁLTICA (CBUQ) DE VIAS PÚBLICAS EM MUNICÍPIOS DIVERSOS DO ESTADO DE SERGIPE",null,null,null,350000,{"$f":"'ORÇAMENTO '!E46","v":0},{"$f":"TRUNC(F10*G10,2)","v":0}]
[]
[{"$nulls":6},"TOTAL",{"$f":"SUM(H10:H11)","v":0}]

{"sheet":"ORÇAMENTO ","index":1,"n_rows":46,"n_cols":9,"rows_kept":46,"cut":false,"hidden":false,"merged":[[0,0,0,5],[1,0,1,5],[5,0,5,8],[45,0,45,3],[45,4,45,8]]}
["SERVIÇO: Execução de CBUQ em vias públicas - SRP",{"$nulls":6},"DATA BASE: "]
["LOCAL: MUNICÍPIOS DIVERSOS, ESTADO DE SERGIPE",{"$nulls":6},"BDI:",{"$f":"'RESUMO DO ORÇAMENTO'!H2","v":0}]
[{"$nulls":7},"BDI FORNEC:",{"$f":"'BDI FORN.'!C33","v":0}]
[{"$nulls":8},"Não Desonerado; Horista:  ; Mensalista:  "]
[]
["DOCUMENTO: PLANILHA ORÇAMENTÁRIA DOS SERVIÇOS"]
[]
["ITEM","BANCO","CÓDIGO ","DESCRIÇÃO","UNID.","QUANTIDADE","CUSTO UNIT.","PREÇO UNIT.","PREÇO TOTAL"]
[]
[" 1 ",null,null,"SERVIÇOS  PRELIMINARES E ADM LOCAL"]
[" 1.1 "," CODEVASF  225 ","Próprio","Mobilização/Desmobilização de Pessoal e Equipamentos (CDVSF)","und",1,null,{"$f":"TRUNC((1+$I$2)*G11,2)","v":0},{"$f":"TRUNC(F11*H11,2)","v":0}]
[" 1.2 "," 74209/001 ","SINAPI","PLACA DE OBRA EM CHAPA DE ACO GALVANIZADO","m²",{"$f":"'MEMÓRIA DE CÁLCULO GERAL'!C23","v":6.48},null,{"$f":"TRUNC((1+$I$2)*G12,2)","v":0},{"$f":"TRUNC(F12*H12,2)","v":0}]
[" 1.3 "," CODEVASF  194 ","Próprio","Administração Local","und",1,null,0,{"$f":"TRUNC(F13*H13,2)","v":0}]
[" 2 ",null,null,"MOVIMENTO DE TERRA"]
[" 2.1 "," 2548 ","ORSE","Locação de serviços de terraplenagem de obras civis","m²",{"$f":"'MEMÓRIA DE CÁLCULO GERAL'!C41","v":14000},null,0,{"$f":"TRUNC(F15*H15,2)","v":0}]
[" 2.2 "," 100575 ","SINAPI","REGULARIZAÇÃO DE SUPERFÍCIES COM MOTONIVELADORA. AF_11/2019","m²",{"$f":"'MEMÓRIA DE CÁLCULO GERAL'!C45","v":14000},null,0,0]
[" 2.3 "," 100576 ","SINAPI","REGULARIZAÇÃO E COMPACTAÇÃO DE SUBLEITO DE SOLO  PREDOMINANTEMENTE ARGILOSO. AF_11/2019","m²",{"$f":"'MEMÓRIA DE CÁLCULO GERAL'!C49","v":1400},null,0,0]
[" 2.4 "," 100577 ","SINAPI","REGULARIZAÇÃO E COMPACTAÇÃO DE SUBLEITO DE SOLO PREDOMINANTEMENTE ARENOSO. AF_11/2019","m²",{"$f":"'MEMÓRIA DE CÁLCULO GERAL'!C53","v":1400},null,0,0]
[" 2.5 "," 101768 ","SINAPI","EXECUÇÃO E COMPACTAÇÃO DE BASE E OU SUB BASE PARA PAVIMENTAÇÃO DE SOLO ESTABILIZADO GRANULOMETRICAMENTE SEM MISTURA DE SOLOS - EXCLUSIVE SOLO, ESCAVAÇÃO, CARGA E TRANSPORTE. AF_11/2019","m³",{"$f":"'MEMÓRIA DE CÁLCULO GERAL'!C57","v":420},null,0,0]
[" 2.6 "," 101124 ","SINAPI","ESCAVAÇÃO HORIZONTAL, INCLUINDO CARGA E DESCARGA EM SOLO DE 1A CATEGORIA COM TRATOR DE ESTEIRAS (100HP/LÂMINA: 2,19M3). AF_07/2020","m³",{"$f":"'MEMÓRIA DE CÁLCULO GERAL'!C61","v":482.99999999999994},null,0,0]
[" 2.7 "," 93589 ","SINAPI","TRANSPORTE COM CAMINHÃO BASCULANTE DE 10 M³, EM VIA URBANA EM REVESTIMENTO PRIMÁRIO (UNIDADE: M3XKM). AF_07/2020","M3XKM",{"$f":"'MEMÓRIA DE CÁLCULO GERAL'!C65","v":8693.9999999999982},null,0,0]
[" 2.8 "," 10923 ","ORSE","Material para sub-base (adquirido solto na jazida) inclusive limpeza da área, corte e carga (posto na caçamba), exclusive transporte (Ruy - Rita Cacete / São Cristóvão)","m³",480,null,0,0]
[" 3 ",null,null,"PAVIMENTAÇÃO"]
[" 3.1 "," 4011352 ","SICRO3","Imprimação com emulsão asfáltica","m²",{"$f":"'MEMÓRIA DE CÁLCULO GERAL'!C73","v":14000},null,0,{"$f":"TRUNC(F24*H24,2)","v":0}]
[" 3.2 "," 4011212 ","SICRO3","Varredura da superfície para execução de revestimento asfáltico","m²",{"$f":"'MEMÓRIA DE CÁLCULO GERAL'!C77","v":14000},null,0,{"$f":"TRUNC(F25*H25,2)","v":0}]
[" 3.3 "," 4011353 ","SICRO3","Pintura de ligação","m²",{"$f":"'MEMÓRIA DE CÁLCULO GERAL'!C81","v":14000},null,0,0]
[" 3.4 "," 4011463 ","SICRO3","Concreto asfáltico - faixa C - areia e brita comerciais","t",{"$f":"'MEMÓRIA DE CÁLCULO GERAL'!C85","v":1697.5},null,0,0]
[" 3.5 "," 95878 ","SINAPI","TRANSPORTE COM CAMINHÃO BASCULANTE DE 10 M³, EM VIA URBANA PAVIMENTADA, DMT ATÉ 30 KM (UNIDADE: TXKM). AF_07/2020","TXKM",{"$f":"'MEMÓRIA DE CÁLCULO GERAL'!C91","v":50925},null,0,0]
[" 3.6 "," 93596 ","SINAPI","TRANSPORTE COM CAMINHÃO BASCULANTE DE 10 M³, EM VIA URBANA PAVIMENTADA, ADICIONAL PARA DMT EXCEDENTE A 30 KM (UNIDADE: TXKM). AF_07/2020","TXKM",{"$f":"'MEMÓRIA DE CÁLCULO GERAL'!C97","v":118825},null,0,0]
[" 4 ",null,null,"AQUISIÇÃO E TRANSPORTE DE MATERIAL ASFÁLTICO",null,null,null,"BDI FORNEC:"]
[" 4.1 "," M2092 ","SICRO3","Emulsão asfáltica para imprimação","t",{"$f":"'MEMÓRIA DE CÁLCULO GERAL'!C101","v":18.2},null,{"$f":"TRUNC((1+$I$3)*G31,2)","v":0},0]
[" 4.2 "," M1946 ","SICRO3","Emulsão asfáltica RR-1C","t",{"$f":"'MEMÓRIA DE CÁLCULO GERAL'!C105","v":6.3},null,{"$f":"TRUNC((1+$I$3)*G32,2)","v":0},0]
[" 4.3 "," M1943 ","SICRO3","Cimento asfáltico CAP 50/70","t",{"$f":"'MEMÓRIA DE CÁLCULO GERAL'!C109","v":96.07},null,0,0]
[" 4.4 "," 102330 ","SINAPI","TRANSPORTE COM CAMINHÃO TANQUE DE TRANSPORTE DE MATERIAL ASFÁLTICO DE 30000 L, EM VIA URBANA PAVIMENTADA, DMT ATÉ 30KM (UNIDADE: TXKM). AF_07/2020","TXKM",{"$f":"'MEMÓRIA DE CÁLCULO GERAL'!C117","v":3617.1},null,0,0]
[" 4.5 ",102331,"SINAPI","TRANSPORTE COM CAMINHÃO TANQUE DE TRANSPORTE DE MATERIAL ASFÁLTICO DE 30000 L, EM VIA URBANA PAVIMENTADA, ADICIONAL PARA DMT EXCEDENTE A 30 KM (UNIDADE: TXKM). AF_07/2020","TXKM",{"$f":"'MEMÓRIA DE CÁLCULO GERAL'!C125","v":44610.9},null,0,0]
[" 5 ",null,null,"SINALIZAÇÃO"]
[" 5.1 "," 5213440 ","SICRO3","Fornecimento e implantação de placa de regulamentação em aço D = 0,60 m - película retrorrefletiva tipo I + SI","un",{"$f":"'MEMÓRIA DE CÁLCULO GERAL'!C129","v":4},null,{"$f":"TRUNC((1+$I$2)*G37,2)","v":0},0]
[" 5.2 "," 5213851 ","SICRO3","Fornecimento e implantação de suporte metálico galvanizado para placa de regulamentação - D = 0,60 m","un",{"$f":"'MEMÓRIA DE CÁLCULO GERAL'!C133","v":4},null,0,0]
[" 6 ",null,null,"DRENAGEM"]
[" 6.1 ",2003373,"SICRO3","Meio fio de concreto - MFC 03 - areia e brita comerciais - fôrma de madeira","m",4000,null,0,0]
[" 7 ",null,null,"PROJETO EXECUTIVO"]
[" 7.1 "," 9345 ","ORSE","Levantamento topográfico planimétrico de rua (via pública) e semi - cadastro de imóveis","m",{"$f":"'MEMÓRIA DE CÁLCULO GERAL'!C157","v":2000},null,{"$f":"TRUNC((1+$I$2)*G42,2)","v":0},0]
[" 7.2 "," 13587 ","ORSE","Projeto de Pavimentação","Km",{"$f":"'MEMÓRIA DE CÁLCULO GERAL'!C161","v":2},null,0,0]
[" 7.3 "," CODEVASF  226 ","Próprio","Ensaios geotécnicos (CDVSF)","m²",{"$f":"'MEMÓRIA DE CÁLCULO GERAL'!C165","v":14000},null,0,0]
[]
["VALOR DO PAVIMENTO POR M²",null,null,null,{"$f":"TRUNC(SUBTOTAL(9,I11:I44)/F16,2)","v":0}]

{"sheet":"CPUs","index":2,"n_rows":347,"n_cols":10,"rows_kept":347,"cut":false,"hidden":false,"merged":[[344,7,344,8],[345,7,345,8],[346,7,346,8],[347,0,347,5],[347,6,347,8],[349,7,349,8],[336,6,336,8],[337,6,337,8],[338,6,338,8],[339,6,339,8],[340,0,340,5],[340,6,340,8],[341,7,341,8],[342,7,342,8],[343,7,343,8],[333,0,333,5],[333,6,333,8],[334,6,334,8],[335,6,335,8],[330,0,330,5],[330,6,330,8],[331,0,331,5],[331,6,331,8],[332,0,332,5],[332,6,332,8],[325,5,325,8],[327,0,327,5],[327,6,327,8],[328,0,328,5],[328,6,328,8],[329,0,329,5],[329,6,329,8],[317,9,318,9],[324,0,324,5],[324,6,324,8],[315,4,315,5],[316,4,316,5],[317,0,318,0],[317,1,318,1],[317,2,318,2],[317,3,318,3],[317,4,318,4],[317,5,317,6],[317,7,317,8],[310,4,310,5],[312,7,312,8],[300,4,300,5],[301,4,301,5],[302,4,302,5],[303,4,303,5],[304,4,304,5],[305,4,305,5],[292,4,292,5],[293,4,293,5],[294,4,294,5],[295,4,295,5],[297,7,297,8],[299,4,299,5],[306,4,306,5],[307,4,307,5],[308,4,308,5],[309,4,309,5],[262,6,262,8],[263,0,263,5],[263,6,263,8],[264,7,264,8],[265,7,265,8],[281,6,281,8],[282,6,282,8],[283,6,283,8],[284,0,284,5],[284,6,284,8],[266,7,266,8],[267,7,267,8],[268,0,268,5],[268,6,268,8],[270,7,270,8],[272,4,272,5],[286,7,286,8],[277,0,277,5],[277,6,277,8],[278,0,278,5],[278,6,278,8],[279,6,279,8],[280,6,280,8],[273,4,273,5],[274,0,274,5],[274,6,274,8],[275,0,275,5],[275,6,275,8],[276,0,276,5],[276,6,276,8],[288,4,288,5],[289,4,289,5],[290,4,290,5],[291,4,291,5],[261,6,261,8],[238,7,238,8],[240,4,240,5],[241,4,241,5],[242,0,243,0],[242,1,243,1],[254,0,254,5],[254,6,254,8],[255,0,255,5],[255,6,255,8],[256,6,256,8],[257,6,257,8],[251,0,251,5],[251,6,251,8],[252,0,252,5],[252,6,252,8],[253,0,253,5],[253,6,253,8],[245,0,245,5],[245,6,245,8],[242,9,243,9],[258,6,258,8],[259,0,259,5],[259,6,259,8],[260,6,260,8],[233,0,233,5],[233,6,233,8],[234,6,234,8],[235,6,235,8],[236,0,236,5],[236,6,236,8],[246,5,246,8],[249,0,249,5],[249,6,249,8],[250,0,250,5],[250,6,250,8],[242,2,243,2],[242,3,243,3],[242,4,243,4],[242,5,242,6],[242,7,242,8],[230,0,230,5],[230,6,230,8],[231,0,231,5],[231,6,231,8],[232,0,232,5],[232,6,232,8],[227,0,227,5],[227,6,227,8],[228,0,228,5],[228,6,228,8],[229,0,229,5],[229,6,229,8],[220,9,221,9],[223,0,223,5],[223,6,223,8],[188,7,188,8],[190,4,190,5],[191,4,191,5],[192,4,192,5],[193,4,193,5],[220,0,221,0],[220,1,221,1],[220,2,221,2],[220,3,221,3],[220,4,221,4],[220,5,220,6],[212,4,212,5],[213,4,213,5],[214,4,214,5],[216,7,216,8],[218,4,218,5],[219,4,219,5],[204,4,204,5],[205,4,205,5],[206,4,206,5],[207,4,207,5],[224,5,224,8],[183,0,183,5],[183,6,183,8],[184,7,184,8],[185,7,185,8],[186,0,186,5],[186,6,186,8],[179,0,179,5],[179,6,179,8],[180,0,180,5],[180,6,180,8],[181,6,181,8],[182,6,182,8],[197,4,197,5],[198,4,198,5],[199,4,199,5],[200,4,200,5],[202,7,202,8],[220,7,220,8],[209,7,209,8],[211,4,211,5],[195,7,195,8],[176,0,176,5],[176,6,176,8],[177,0,177,5],[177,6,177,8],[178,0,178,5],[178,6,178,8],[175,0,175,5],[175,6,175,8],[151,0,151,5],[151,6,151,8],[152,5,152,8],[154,0,154,5],[154,6,154,8],[155,0,155,5],[155,6,155,8],[156,0,156,5],[160,0,160,5],[160,6,160,8],[157,0,157,5],[157,6,157,8],[158,0,158,5],[158,6,158,8],[159,0,159,5],[159,6,159,8],[171,0,171,5],[171,6,171,8],[172,5,172,8],[174,0,174,5],[174,6,174,8],[162,7,162,8],[164,4,164,5],[165,4,165,5],[166,0,167,0],[166,1,167,1],[166,2,167,2],[166,3,167,3],[166,4,167,4],[166,5,166,6],[166,7,166,8],[139,6,139,8],[140,0,140,5],[140,6,140,8],[141,0,141,5],[141,6,141,8],[143,7,143,8],[145,4,145,5],[156,6,156,8],[166,9,167,9],[113,9,114,9],[117,0,117,5],[117,6,117,8],[118,5,118,8],[120,0,120,5],[120,6,120,8],[121,0,121,5],[121,6,121,8],[132,5,132,6],[132,7,132,8],[132,9,133,9],[125,0,125,5],[125,6,125,8],[126,0,126,5],[126,6,126,8],[124,0,124,5],[124,6,124,8],[136,0,136,5],[136,6,136,8],[137,0,137,5],[137,6,137,8],[147,7,147,8],[147,9,148,9],[128,7,128,8],[130,4,130,5],[131,4,131,5],[132,0,133,0],[132,1,133,1],[132,2,133,2],[132,3,133,3],[132,4,133,4],[146,4,146,5],[147,0,148,0],[147,1,148,1],[147,2,148,2],[147,3,148,3],[147,4,148,4],[147,5,147,6],[138,0,138,5],[138,6,138,8],[139,0,139,5],[95,4,95,5],[96,4,96,5],[97,4,97,5],[98,4,98,5],[99,4,99,5],[100,4,100,5],[122,0,122,5],[122,6,122,8],[123,0,123,5],[123,6,123,8],[113,7,113,8],[111,4,111,5],[112,4,112,5],[113,0,114,0],[113,1,114,1],[113,2,114,2],[113,3,114,3],[113,4,114,4],[113,5,113,6],[102,7,102,8],[104,4,104,5],[105,4,105,5],[106,4,106,5],[107,4,107,5],[109,7,109,8],[72,4,72,5],[73,4,73,5],[32,4,32,5],[33,4,33,5],[34,4,34,5],[45,4,45,5],[46,4,46,5],[47,4,47,5],[48,4,48,5],[65,4,65,5],[66,4,66,5],[67,4,67,5],[68,4,68,5],[69,4,69,5],[70,4,70,5],[91,4,91,5],[93,7,93,8],[55,4,55,5],[56,4,56,5],[57,4,57,5],[58,4,58,5],[59,4,59,5],[60,4,60,5],[85,4,85,5],[86,4,86,5],[87,4,87,5],[88,4,88,5],[89,4,89,5],[90,4,90,5],[49,4,49,5],[51,7,51,8],[53,4,53,5],[54,4,54,5],[75,7,75,8],[77,4,77,5],[78,4,78,5],[79,4,79,5],[80,4,80,5],[81,4,81,5],[82,4,82,5],[83,4,83,5],[84,4,84,5],[40,4,40,5],[41,4,41,5],[43,7,43,8],[71,4,71,5],[5,4,5,5],[6,4,6,5],[7,4,7,5],[8,4,8,5],[9,4,9,5],[11,7,11,8],[30,4,30,5],[31,4,31,5],[13,4,13,5],[14,4,14,5],[15,4,15,5],[16,4,16,5],[17,4,17,5],[18,4,18,5],[36,7,36,8],[38,4,38,5],[39,4,39,5],[61,4,61,5],[63,7,63,8],[0,6,0,7],[0,8,0,9],[1,2,1,3],[1,4,1,5],[1,6,1,7],[1,8,1,9],[27,4,27,5],[28,4,28,5],[29,4,29,5],[0,2,0,3],[0,4,0,5],[2,0,2,9],[3,0,3,9],[4,4,4,5],[19,4,19,5],[20,4,20,5],[21,4,21,5],[23,7,23,8],[25,4,25,5],[26,4,26,5]]}
[null,null,"Composições Analíticas com Preço Unitário",null,null,null,"B.D.I.",null,"Encargos Sociais"]
[null,null,"Execução de CBUQ em vias públicas - SRP",null,null,null,{"$f":"'RESUMO DO ORÇAMENTO'!H2","v":0},null,"Não Desonerado: \nHorista:  \nMensalista: "]
["Composições Analíticas com Preço Unitário"]
["Composições Principais"]
[" 1.1 ","Código","Banco","Descrição","Tipo",null,"Und","Quant.","Valor Unit","Total"]
["Composição"," CODEVASF  225 ","Próprio","Mobilização/Desmobilização de Pessoal e Equipamentos (CDVSF)","CANT - CANTEIRO DE OBRAS",null,"und",1]
["Insumo"," 2480 ","ORSE","Pick-up, capacidade 1,2 t","Equipamento",null,"h",16]
["Insumo"," 2452 ","ORSE","Caminhao toco, PBT = 9700kg, com carroceria de madeira 2,50x7,00x0,50m, potência 160 cv","Equipamento",null,"h",64]
["Insumo"," 00004222 ","SINAPI","GASOLINA COMUM","Material",null,"L",80]
["Insumo"," 00004221 ","SINAPI","OLEO DIESEL COMBUSTIVEL COMUM","Material",null,"L",320]
[]
[]
[]
[" 1.2 ","Código","Banco","Descrição","Tipo",null,"Und","Quant.","Valor Unit","Total"]
["Composição"," 74209/001 ","SINAPI","PLACA DE OBRA EM CHAPA DE ACO GALVANIZADO","CANT - CANTEIRO DE OBRAS",null,"m²",1]
["Composição Auxiliar"," 94962 ","SINAPI","CONCRETO MAGRO PARA LASTRO, TRAÇO 1:4,5:4,5 (EM MASSA SECA DE CIMENTO/ AREIA MÉDIA/ BRITA 1) - PREPARO MECÂNICO COM BETONEIRA 400 L. AF_05/2021","FUES - FUNDAÇÕES E ESTRUTURAS",null,"m³",0.01]
["Composição Auxiliar"," 88262 ","SINAPI","CARPINTEIRO DE FORMAS COM ENCARGOS COMPLEMENTARES","SEDI - SERVIÇOS DIVERSOS",null,"H",1]
["Composição Auxiliar"," 88316 ","SINAPI","SERVENTE COM ENCARGOS COMPLEMENTARES","SEDI - SERVIÇOS DIVERSOS",null,"H",2]
["Insumo"," 00004813 ","SINAPI","PLACA DE OBRA (PARA CONSTRUCAO CIVIL) EM CHAPA GALVANIZADA *N. 22*, ADESIVADA, DE *2,0 X 1,125* M","Material",null,"m²",1]
["Insumo"," 00005075 ","SINAPI","PREGO DE ACO POLIDO COM CABECA 18 X 30 (2 3/4 X 10)","Material",null,"KG",0.11]
["Insumo"," 00004491 ","SINAPI","PONTALETE DE MADEIRA NAO APARELHADA *7,5 X 7,5* CM (3 X 3 \") PINUS, MISTA OU EQUIVALENTE DA REGIAO","Material",null,"M",4]
["Insumo"," 00004417 ","SINAPI","SARRAFO NAO APARELHADO *2,5 X 7* CM, EM MACARANDUBA, ANGELIM OU EQUIVALENTE DA REGIAO -  BRUTA","Material",null,"M",1]
[]
[]
[]
[" 1.3 ","Código","Banco","Descrição","Tipo",null,"Und","Quant.","Valor Unit","Total"]
["Composição"," CODEVASF  224 ","Próprio","Administração Local (CDVSF)","CANT - CANTEIRO DE OBRAS",null,"und",1]
["Composição Auxiliar"," 93568 ","SINAPI","ENGENHEIRO CIVIL DE OBRA SENIOR COM ENCARGOS COMPLEMENTARES","SEDI - SERVIÇOS DIVERSOS",null,"MES",0.5]
["Composição Auxiliar"," 93572 ","SINAPI","ENCARREGADO GERAL DE OBRAS COM ENCARGOS COMPLEMENTARES","SEDI - SERVIÇOS DIVERSOS",null,"MES",1]
["Insumo"," 4298 ","ORSE","Aluguel de container - Escritório com banheiro - 6,20 x 2,40m, equipado com Ar condicionado","Serviços",null,"mês",4]
["Insumo"," 10555 ","ORSE","Consumo de energia elétrica","Serviços",null,"mês",1]
["Insumo"," 10554 ","ORSE","Água - dispêndio mensal","Serviços",null,"mês",1]
["Insumo"," 10563 ","ORSE","Material de limpeza","Material",null,"mês",1]
["Insumo"," 2480 ","ORSE","Pick-up, capacidade 1,2 t","Equipamento",null,"h",600]
["Insumo"," 00004221 ","SINAPI","OLEO DIESEL COMBUSTIVEL COMUM","Material",null,"L",180]
[]
[]
[]
[" 2.1 ","Código","Banco","Descrição","Tipo",null,"Und","Quant.","Valor Unit","Total"]
["Composição"," 2548 ","ORSE","Locação de serviços de terraplenagem de obras civis","Locação de Serviços de Terraplenagem e Acompanhamento Topográfico da Obra",null,"m²",1]
["Insumo"," 48 ","ORSE","Auxiliar topografia - T4 - Segundo grau completo - DNIT -  Mês de ref.: 02/20","Mão de Obra",null,"h",3.3300000000000003E-2]
["Insumo"," 70 ","ORSE","Topografo - T2 - Fonte DNIT -  Mês de ref.: 02/20","Mão de Obra",null,"h",1.67E-2]
[]
[]
[]
[" 2.2 ","Código","Banco","Descrição","Tipo",null,"Und","Quant.","Valor Unit","Total"]
["Composição"," 100575 ","SINAPI","REGULARIZAÇÃO DE SUPERFÍCIES COM MOTONIVELADORA. AF_11/2019","PAVI - PAVIMENTAÇÃO",null,"m²",1]
["Composição Auxiliar"," 5934 ","SINAPI","MOTONIVELADORA POTÊNCIA BÁSICA LÍQUIDA (PRIMEIRA MARCHA) 125 HP, PESO BRUTO 13032 KG, LARGURA DA LÂMINA DE 3,7 M - CHI DIURNO. AF_06/2014","CHOR - CUSTOS HORÁRIOS DE MÁQUINAS E EQUIPAMENTOS",null,"CHI",1E-3]
["Composição Auxiliar"," 5932 ","SINAPI","MOTONIVELADORA POTÊNCIA BÁSICA LÍQUIDA (PRIMEIRA MARCHA) 125 HP, PESO BRUTO 13032 KG, LARGURA DA LÂMINA DE 3,7 M - CHP DIURNO. AF_06/2014","CHOR - CUSTOS HORÁRIOS DE MÁQUINAS E EQUIPAMENTOS",null,"CHP",1E-4]
["Composição Auxiliar"," 88316 ","SINAPI","SERVENTE COM ENCARGOS COMPLEMENTARES","SEDI - SERVIÇOS DIVERSOS",null,"H",1E-3]
[]
[]
[]
[" 2.3 ","Código","Banco","Descrição","Tipo",null,"Und","Quant.","Valor Unit","Total"]
["Composição"," 100576 ","SINAPI","REGULARIZAÇÃO E COMPACTAÇÃO DE SUBLEITO DE SOLO  PREDOMINANTEMENTE ARGILOSO. AF_11/2019","PAVI - PAVIMENTAÇÃO",null,"m²",1]
["Composição Auxiliar"," 5934 ","SINAPI","MOTONIVELADORA POTÊNCIA BÁSICA LÍQUIDA (PRIMEIRA MARCHA) 125 HP, PESO BRUTO 13032 KG, LARGURA DA LÂMINA DE 3,7 M - CHI DIURNO. AF_06/2014","CHOR - CUSTOS HORÁRIOS DE MÁQUINAS E EQUIPAMENTOS",null,"CHI",8.0000000000000002E-3]
["Composição Auxiliar"," 5903 ","SINAPI","CAMINHÃO PIPA 10.000 L TRUCADO, PESO BRUTO TOTAL 23.000 KG, CARGA ÚTIL MÁXIMA 15.935 KG, DISTÂNCIA ENTRE EIXOS 4,8 M, POTÊNCIA 230 CV, INCLUSIVE TANQUE DE AÇO PARA TRANSPORTE DE ÁGUA - CHI DIURNO. AF_06/2014","CHOR - CUSTOS HORÁRIOS DE MÁQUINAS E EQUIPAMENTOS",null,"CHI",7.0000000000000001E-3]
["Composição Auxiliar"," 73436 ","SINAPI","ROLO COMPACTADOR VIBRATÓRIO PÉ DE CARNEIRO PARA SOLOS, POTÊNCIA 80 HP, PESO OPERACIONAL SEM/COM LASTRO 7,4 / 8,8 T, LARGURA DE TRABALHO 1,68 M - CHP DIURNO. AF_02/2016","CHOR - CUSTOS HORÁRIOS DE MÁQUINAS E EQUIPAMENTOS",null,"CHP",2E-3]
["Composição Auxiliar"," 93244 ","SINAPI","ROLO COMPACTADOR VIBRATÓRIO PÉ DE CARNEIRO PARA SOLOS, POTÊNCIA 80 HP, PESO OPERACIONAL SEM/COM LASTRO 7,4 / 8,8 T, LARGURA DE TRABALHO 1,68 M - CHI DIURNO. AF_02/2016","CHOR - CUSTOS HORÁRIOS DE MÁQUINAS E EQUIPAMENTOS",null,"CHI",6.0000000000000001E-3]
["Composição Auxiliar"," 5901 ","SINAPI","CAMINHÃO PIPA 10.000 L TRUCADO, PESO BRUTO TOTAL 23.000 KG, CARGA ÚTIL MÁXIMA 15.935 KG, DISTÂNCIA ENTRE EIXOS 4,8 M, POTÊNCIA 230 CV, INCLUSIVE TANQUE DE AÇO PARA TRANSPORTE DE ÁGUA - CHP DIURNO. AF_06/2014","CHOR - CUSTOS HORÁRIOS DE MÁQUINAS E EQUIPAMENTOS",null,"CHP",1E-3]
["Composição Auxiliar"," 5932 ","SINAPI","MOTONIVELADORA POTÊNCIA BÁSICA LÍQUIDA (PRIMEIRA MARCHA) 125 HP, PESO BRUTO 13032 KG, LARGURA DA LÂMINA DE 3,7 M - CHP DIURNO. AF_06/2014","CHOR - CUSTOS HORÁRIOS DE MÁQUINAS E EQUIPAMENTOS",null,"CHP",1E-4]
["Composição Auxiliar"," 88316 ","SINAPI","SERVENTE COM ENCARGOS COMPLEMENTARES","SEDI - SERVIÇOS DIVERSOS",null,"H",8.0000000000000002E-3]
[]
[]
[]
[" 2.4 ","Código","Banco","Descrição","Tipo",null,"Und","Quant.","Valor Unit","Total"]
["Composição"," 100577 ","SINAPI","REGULARIZAÇÃO E COMPACTAÇÃO DE SUBLEITO DE SOLO PREDOMINANTEMENTE ARENOSO. AF_11/2019","PAVI - PAVIMENTAÇÃO",null,"m²",1]
["Composição Auxiliar"," 5934 ","SINAPI","MOTONIVELADORA POTÊNCIA BÁSICA LÍQUIDA (PRIMEIRA MARCHA) 125 HP, PESO BRUTO 13032 KG, LARGURA DA LÂMINA DE 3,7 M - CHI DIURNO. AF_06/2014","CHOR - CUSTOS HORÁRIOS DE MÁQUINAS E EQUIPAMENTOS",null,"CHI",3.0000000000000001E-3]
["Composição Auxiliar"," 96464 ","SINAPI","ROLO COMPACTADOR DE PNEUS, ESTATICO, PRESSAO VARIAVEL, POTENCIA 110 HP, PESO SEM/COM LASTRO 10,8/27 T, LARGURA DE ROLAGEM 2,30 M - CHI DIURNO. AF_06/2017","CHOR - CUSTOS HORÁRIOS DE MÁQUINAS E EQUIPAMENTOS",null,"CHI",2E-3]
["Composição Auxiliar"," 5932 ","SINAPI","MOTONIVELADORA POTÊNCIA BÁSICA LÍQUIDA (PRIMEIRA MARCHA) 125 HP, PESO BRUTO 13032 KG, LARGURA DA LÂMINA DE 3,7 M - CHP DIURNO. AF_06/2014","CHOR - CUSTOS HORÁRIOS DE MÁQUINAS E EQUIPAMENTOS",null,"CHP",1E-4]
["Composição Auxiliar"," 96463 ","SINAPI","ROLO COMPACTADOR DE PNEUS, ESTATICO, PRESSAO VARIAVEL, POTENCIA 110 HP, PESO SEM/COM LASTRO 10,8/27 T, LARGURA DE ROLAGEM 2,30 M - CHP DIURNO. AF_06/2017","CHOR - CUSTOS HORÁRIOS DE MÁQUINAS E EQUIPAMENTOS",null,"CHP",1E-3]
["Composição Auxiliar"," 5903 ","SINAPI","CAMINHÃO PIPA 10.000 L TRUCADO, PESO BRUTO TOTAL 23.000 KG, CARGA ÚTIL MÁXIMA 15.935 KG, DISTÂNCIA ENTRE EIXOS 4,8 M, POTÊNCIA 230 CV, INCLUSIVE TANQUE DE AÇO PARA TRANSPORTE DE ÁGUA - CHI DIURNO. AF_06/2014","CHOR - CUSTOS HORÁRIOS DE MÁQUINAS E EQUIPAMENTOS",null,"CHI",2E-3]
["Composição Auxiliar"," 5901 ","SINAPI","CAMINHÃO PIPA 10.000 L TRUCADO, PESO BRUTO TOTAL 23.000 KG, CARGA ÚTIL MÁXIMA 15.935 KG, DISTÂNCIA ENTRE EIXOS 4,8 M, POTÊNCIA 230 CV, INCLUSIVE TANQUE DE AÇO PARA TRANSPORTE DE ÁGUA - CHP DIURNO. AF_06/2014","CHOR - CUSTOS HORÁRIOS DE MÁQUINAS E EQUIPAMENTOS",null,"CHP",1E-3]
["Composição Auxiliar"," 88316 ","SINAPI","SERVENTE COM ENCARGOS COMPLEMENTARES","SEDI - SERVIÇOS DIVERSOS",null,"H",3.0000000000000001E-3]
[]
[]
[]
[" 2.5 ","Código","Banco","Descrição","Tipo",null,"Und","Quant.","Valor Unit","Total"]
["Composição"," 101768 ","SINAPI","EXECUÇÃO E COMPACTAÇÃO DE BASE E OU SUB BASE PARA PAVIMENTAÇÃO DE SOLO ESTABILIZADO GRANULOMETRICAMENTE SEM MISTURA DE SOLOS - EXCLUSIVE SOLO, ESCAVAÇÃO, CARGA E TRANSPORTE. AF_11/2019","PAVI - PAVIMENTAÇÃO",null,"m³",1]
["Composição Auxiliar"," 5921 ","SINAPI","GRADE DE DISCO REBOCÁVEL COM 20 DISCOS 24\" X 6 MM COM PNEUS PARA TRANSPORTE - CHP DIURNO. AF_06/2014","CHOR - CUSTOS HORÁRIOS DE MÁQUINAS E EQUIPAMENTOS",null,"CHP",7.1999999999999998E-3]
["Composição Auxiliar"," 73436 ","SINAPI","ROLO COMPACTADOR VIBRATÓRIO PÉ DE CARNEIRO PARA SOLOS, POTÊNCIA 80 HP, PESO OPERACIONAL SEM/COM LASTRO 7,4 / 8,8 T, LARGURA DE TRABALHO 1,68 M - CHP DIURNO. AF_02/2016","CHOR - CUSTOS HORÁRIOS DE MÁQUINAS E EQUIPAMENTOS",null,"CHP",4.07E-2]
["Composição Auxiliar"," 89035 ","SINAPI","TRATOR DE PNEUS, POTÊNCIA 85 CV, TRAÇÃO 4X4, PESO COM LASTRO DE 4.675 KG - CHP DIURNO. AF_06/2014","CHOR - CUSTOS HORÁRIOS DE MÁQUINAS E EQUIPAMENTOS",null,"CHP",7.1999999999999998E-3]
["Composição Auxiliar"," 5934 ","SINAPI","MOTONIVELADORA POTÊNCIA BÁSICA LÍQUIDA (PRIMEIRA MARCHA) 125 HP, PESO BRUTO 13032 KG, LARGURA DA LÂMINA DE 3,7 M - CHI DIURNO. AF_06/2014","CHOR - CUSTOS HORÁRIOS DE MÁQUINAS E EQUIPAMENTOS",null,"CHI",5.16E-2]
["Composição Auxiliar"," 96464 ","SINAPI","ROLO COMPACTADOR DE PNEUS, ESTATICO, PRESSAO VARIAVEL, POTENCIA 110 HP, PESO SEM/COM LASTRO 10,8/27 T, LARGURA DE ROLAGEM 2,30 M - CHI DIURNO. AF_06/2017","CHOR - CUSTOS HORÁRIOS DE MÁQUINAS E EQUIPAMENTOS",null,"CHI",5.1700000000000003E-2]
["Composição Auxiliar"," 5923 ","SINAPI","GRADE DE DISCO REBOCÁVEL COM 20 DISCOS 24\" X 6 MM COM PNEUS PARA TRANSPORTE - CHI DIURNO. AF_06/2014","CHOR - CUSTOS HORÁRIOS DE MÁQUINAS E EQUIPAMENTOS",null,"CHI",5.0299999999999997E-2]
["Composição Auxiliar"," 5932 ","SINAPI","MOTONIVELADORA POTÊNCIA BÁSICA LÍQUIDA (PRIMEIRA MARCHA) 125 HP, PESO BRUTO 13032 KG, LARGURA DA LÂMINA DE 3,7 M - CHP DIURNO. AF_06/2014","CHOR - CUSTOS HORÁRIOS DE MÁQUINAS E EQUIPAMENTOS",null,"CHP",5.8999999999999999E-3]
["Composição Auxiliar"," 93244 ","SINAPI","ROLO COMPACTADOR VIBRATÓRIO PÉ DE CARNEIRO PARA SOLOS, POTÊNCIA 80 HP, PESO OPERACIONAL SEM/COM LASTRO 7,4 / 8,8 T, LARGURA DE TRABALHO 1,68 M - CHI DIURNO. AF_02/2016","CHOR - CUSTOS HORÁRIOS DE MÁQUINAS E EQUIPAMENTOS",null,"CHI",5.7999999999999996E-3]
["Composição Auxiliar"," 96463 ","SINAPI","ROLO COMPACTADOR DE PNEUS, ESTATICO, PRESSAO VARIAVEL, POTENCIA 110 HP, PESO SEM/COM LASTRO 10,8/27 T, LARGURA DE ROLAGEM 2,30 M - CHP DIURNO. AF_06/2017","CHOR - CUSTOS HORÁRIOS DE MÁQUINAS E EQUIPAMENTOS",null,"CHP",5.7999999999999996E-3]
["Composição Auxiliar"," 5903 ","SINAPI","CAMINHÃO PIPA 10.000 L TRUCADO, PESO BRUTO TOTAL 23.000 KG, CARGA ÚTIL MÁXIMA 15.935 KG, DISTÂNCIA ENTRE EIXOS 4,8 M, POTÊNCIA 230 CV, INCLUSIVE TANQUE DE AÇO PARA TRANSPORTE DE ÁGUA - CHI DIURNO. AF_06/2014","CHOR - CUSTOS HORÁRIOS DE MÁQUINAS E EQUIPAMENTOS",null,"CHI",1.6799999999999999E-2]
["Composição Auxiliar"," 5901 ","SINAPI","CAMINHÃO PIPA 10.000 L TRUCADO, PESO BRUTO TOTAL 23.000 KG, CARGA ÚTIL MÁXIMA 15.935 KG, DISTÂNCIA ENTRE EIXOS 4,8 M, POTÊNCIA 230 CV, INCLUSIVE TANQUE DE AÇO PARA TRANSPORTE DE ÁGUA - CHP DIURNO. AF_06/2014","CHOR - CUSTOS HORÁRIOS DE MÁQUINAS E EQUIPAMENTOS",null,"CHP",5.2699999999999997E-2]
["Composição Auxiliar"," 89036 ","SINAPI","TRATOR DE PNEUS, POTÊNCIA 85 CV, TRAÇÃO 4X4, PESO COM LASTRO DE 4.675 KG - CHI DIURNO. AF_06/2014","CHOR - CUSTOS HORÁRIOS DE MÁQUINAS E EQUIPAMENTOS",null,"CHI",5.0299999999999997E-2]
["Composição Auxiliar"," 88316 ","SINAPI","SERVENTE COM ENCARGOS COMPLEMENTARES","SEDI - SERVIÇOS DIVERSOS",null,"H",5.7500000000000002E-2]
[]
[]
[]
[" 2.6 ","Código","Banco","Descrição","Tipo",null,"Und","Quant.","Valor Unit","Total"]
["Composição"," 101124 ","SINAPI","ESCAVAÇÃO HORIZONTAL, INCLUINDO CARGA E DESCARGA EM SOLO DE 1A CATEGORIA COM TRATOR DE ESTEIRAS (100HP/LÂMINA: 2,19M3). AF_07/2020","MOVT - MOVIMENTO DE TERRA",null,"m³",1]
["Composição Auxiliar"," 89032 ","SINAPI","TRATOR DE ESTEIRAS, POTÊNCIA 100 HP, PESO OPERACIONAL 9,4 T, COM LÂMINA 2,19 M3 - CHP DIURNO. AF_06/2014","CHOR - CUSTOS HORÁRIOS DE MÁQUINAS E EQUIPAMENTOS",null,"CHP",1.15E-2]
["Composição Auxiliar"," 89031 ","SINAPI","TRATOR DE ESTEIRAS, POTÊNCIA 100 HP, PESO OPERACIONAL 9,4 T, COM LÂMINA 2,19 M3 - CHI DIURNO. AF_06/2014","CHOR - CUSTOS HORÁRIOS DE MÁQUINAS E EQUIPAMENTOS",null,"CHI",1.95E-2]
["Composição Auxiliar"," 100974 ","SINAPI","CARGA, MANOBRA E DESCARGA DE SOLOS E MATERIAIS GRANULARES EM CAMINHÃO BASCULANTE 10 M³ - CARGA COM PÁ CARREGADEIRA (CAÇAMBA DE 1,7 A 2,8 M³ / 128 HP) E DESCARGA LIVRE (UNIDADE: M3). AF_07/2020","TRAN - TRANSPORTES, CARGAS E DESCARGAS",null,"m³",1.25]
["Composição Auxiliar"," 88316 ","SINAPI","SERVENTE COM ENCARGOS COMPLEMENTARES","SEDI - SERVIÇOS DIVERSOS",null,"H",3.1E-2]
[]
[]
[]
[" 2.7 ","Código","Banco","Descrição","Tipo",null,"Und","Quant.","Valor Unit","Total"]
["Composição"," 93589 ","SINAPI","TRANSPORTE COM CAMINHÃO BASCULANTE DE 10 M³, EM VIA URBANA EM REVESTIMENTO PRIMÁRIO (UNIDADE: M3XKM). AF_07/2020","TRAN - TRANSPORTES, CARGAS E DESCARGAS",null,"M3XKM",1]
["Composição Auxiliar"," 91386 ","SINAPI","CAMINHÃO BASCULANTE 10 M3, TRUCADO CABINE SIMPLES, PESO BRUTO TOTAL 23.000 KG, CARGA ÚTIL MÁXIMA 15.935 KG, DISTÂNCIA ENTRE EIXOS 4,80 M, POTÊNCIA 230 CV INCLUSIVE CAÇAMBA METÁLICA - CHP DIURNO. AF_06/2014","CHOR - CUSTOS HORÁRIOS DE MÁQUINAS E EQUIPAMENTOS",null,"CHP",8.9999999999999993E-3]
["Composição Auxiliar"," 91387 ","SINAPI","CAMINHÃO BASCULANTE 10 M3, TRUCADO CABINE SIMPLES, PESO BRUTO TOTAL 23.000 KG, CARGA ÚTIL MÁXIMA 15.935 KG, DISTÂNCIA ENTRE EIXOS 4,80 M, POTÊNCIA 230 CV INCLUSIVE CAÇAMBA METÁLICA - CHI DIURNO. AF_06/2014","CHOR - CUSTOS HORÁRIOS DE MÁQUINAS E EQUIPAMENTOS",null,"CHI",3.8999999999999998E-3]
[]
[]
[]
[" 3.1 ","Código","Banco","Descrição","Tipo",null,"Und","Quant.","Valor Unit","Total"]
["Composição"," 4011352 ","SICRO3","Imprimação com emulsão asfáltica","",null,"m²",1]
["A","Código","Banco","Equipamentos","Quantidade","Utilização",null,"Custo Operacional",null,"Custo Horário"]
[{"$nulls":5},"Operativa","Improdutiva","Operativa","Improdutiva"]
["Insumo","E9509","SICRO3","Caminhão tanque distribuidor de asfalto com capacidade de 6.000 l - 7 kW/136 kW",1,1,0]
["Insumo","E9558","SICRO3","Tanque de estocagem de asfalto com capacidade de 30.000 l",2,1,0]
[{"$nulls":6},"Custo Horário de Equipamentos =>"]
["B","Código","Banco","Mão de Obra","Quantidade","Salário Hora",null,null,null,"Custo Horário"]
["Insumo","P9824","SICRO3","Servente",2]
[{"$nulls":6},"Custo Horário da Mão de Obra =>"]
[{"$nulls":6},"Adc.M.O. - Ferramentas ( 0,0%) =>"]
[{"$nulls":6},"Custo Horário de Execução =>"]
[{"$nulls":6},"Fator de Influencia da Chuva - FIC =>"]
[{"$nulls":6},"Custo do FIC =>"]
[{"$nulls":6},"Produção de Equipe =>"]
[{"$nulls":6},"Custo Unitário de Execução =>"]
[]
[]
[]
[" 3.2 ","Código","Banco","Descrição","Tipo",null,"Und","Quant.","Valor Unit","Total"]
["Composição"," 4011212 ","SICRO3","Varredura da superfície para execução de revestimento asfáltico","",null,"m²",1]
["A","Código","Banco","Equipamentos","Quantidade","Utilização",null,"Custo Operacional",null,"Custo Horário"]
[{"$nulls":5},"Operativa","Improdutiva","Operativa","Improdutiva"]
["Insumo","E9577","SICRO3","Trator agrícola - 77 kW",1,1,0,97.323499999999996]
["Insumo","E9544","SICRO3","Vassoura mecânica rebocável",1,1,0,8.8710000000000004]
[{"$nulls":6},"Custo Horário de Equipamentos =>"]
[{"$nulls":6},"Custo Horário de Execução =>"]
[{"$nulls":6},"Fator de Influencia da Chuva - FIC =>"]
[{"$nulls":6},"Custo do FIC =>"]
[{"$nulls":6},"Produção de Equipe =>"]
[{"$nulls":6},"Custo Unitário de Execução =>"]
[]
[]
[]
[" 3.3 ","Código","Banco","Descrição","Tipo",null,"Und","Quant.","Valor Unit","Total"]
["Composição"," 4011353 ","SICRO3","Pintura de ligação","",null,"m²",1]
["A","Código","Banco","Equipamentos","Quantidade","Utilização",null,"Custo Operacional",null,"Custo Horário"]
[{"$nulls":5},"Operativa","Improdutiva","Operativa","Improdutiva"]
["Insumo","E9509","SICRO3","Caminhão tanque distribuidor de asfalto com capacidade de 6.000 l - 7 kW/136 kW",1,1,0,188.79220000000001]
["Insumo","E9558","SICRO3","Tanque de estocagem de asfalto com capacidade de 30.000 l",2,1,0,48.577199999999998]
[{"$nulls":6},"Custo Horário de Equipamentos =>"]
["B","Código","Banco","Mão de Obra","Quantidade","Salário Hora",null,null,null,"Custo Horário"]
["Insumo","P9824","SICRO3","Servente",2]
[{"$nulls":6},"Custo Horário da Mão de Obra =>"]
[{"$nulls":6},"Adc.M.O. - Ferramentas ( 0,0%) =>"]
[{"$nulls":6},"Custo Horário de Execução =>"]
[{"$nulls":6},"Fator de Influencia da Chuva - FIC =>"]
[{"$nulls":6},"Custo do FIC =>"]
[{"$nulls":6},"Produção de Equipe =>"]
[{"$nulls":6},"Custo Unitário de Execução =>"]
[]
[]
[]
[" 3.4 ","Código","Banco","Descrição","Tipo",null,"Und","Quant.","Valor Unit","Total"]
["Composição"," 4011463 ","SICRO3","Concreto asfáltico - faixa C - areia e brita comerciais","",null,"t",1]
["A","Código","Banco","Equipamentos","Quantidade","Utilização",null,"Custo Operacional",null,"Custo Horário"]
[{"$nulls":5},"Operativa","Improdutiva","Operativa","Improdutiva"]
["Insumo","E9762","SICRO3","Rolo compactador de pneus autopropelido de 27 t - 85 kW",1,0.71,0.28999999999999998]
["Insumo","E9681","SICRO3","Rolo compactador liso tandem vibratório autopropelido de 10,4 t - 82 kW",1,0.82,0.18]
["Insumo","E9545","SICRO3","Vibroacabadora de asfalto sobre esteiras - 82 kW",1,1,0]
[{"$nulls":6},"Custo Horário de Equipamentos =>"]
["B","Código","Banco","Mão de Obra","Quantidade","Salário Hora",null,null,null,"Custo Horário"]
["Insumo","P9824","SICRO3","Servente",8]
[{"$nulls":6},"Custo Horário da Mão de Obra =>"]
[{"$nulls":6},"Adc.M.O. - Ferramentas ( 0,0%) =>"]
[{"$nulls":6},"Custo Horário de Execução =>"]
[{"$nulls":6},"Fator de Influencia da Chuva - FIC =>"]
[{"$nulls":6},"Custo do FIC =>"]
[{"$nulls":6},"Produção de Equipe =>"]
[{"$nulls":6},"Custo Unitário de Execução =>"]
["D","Banco","Código","Atividades Auxiliares","Quantidade","Unidade","Preço Unitário",null,null,"Custo Horário"]
["Atividade Auxiliar","SICRO3",6416078,"Usinagem de concreto asfáltico - faixa C - areia e brita comerciais",1.02,"t",123.65]
[{"$nulls":6},"Custo Total das Atividades =>"]
["E","Banco","Insumo","Tempos Fixos","Código","Quantidade","Unidade","Preço Unitário",null,"Custo Horário"]
["Tempo Fixo","SICRO3",6416078,"Carga, manobra e descarga de mistura betuminosa a quente em caminhão basculante de 10 m³ - carga em usina de asfalto",5914649,1.02,"t"]
[{"$nulls":6},"Custo Total dos Tempos Fixos =>"]
[]
[]
[]
[" 3.5 ","Código","Banco","Descrição","Tipo",null,"Und","Quant.","Valor Unit","Total"]
["Composição"," 95878 ","SINAPI","TRANSPORTE COM CAMINHÃO BASCULANTE DE 10 M³, EM VIA URBANA PAVIMENTADA, DMT ATÉ 30 KM (UNIDADE: TXKM). AF_07/2020","TRAN - TRANSPORTES, CARGAS E DESCARGAS",null,"TXKM",1]
["Composição Auxiliar"," 91386 ","SINAPI","CAMINHÃO BASCULANTE 10 M3, TRUCADO CABINE SIMPLES, PESO BRUTO TOTAL 23.000 KG, CARGA ÚTIL MÁXIMA 15.935 KG, DISTÂNCIA ENTRE EIXOS 4,80 M, POTÊNCIA 230 CV INCLUSIVE CAÇAMBA METÁLICA - CHP DIURNO. AF_06/2014","CHOR - CUSTOS HORÁRIOS DE MÁQUINAS E EQUIPAMENTOS",null,"CHP",5.5999999999999999E-3]
["Composição Auxiliar"," 91387 ","SINAPI","CAMINHÃO BASCULANTE 10 M3, TRUCADO CABINE SIMPLES, PESO BRUTO TOTAL 23.000 KG, CARGA ÚTIL MÁXIMA 15.935 KG, DISTÂNCIA ENTRE EIXOS 4,80 M, POTÊNCIA 230 CV INCLUSIVE CAÇAMBA METÁLICA - CHI DIURNO. AF_06/2014","CHOR - CUSTOS HORÁRIOS DE MÁQUINAS E EQUIPAMENTOS",null,"CHI",2.3999999999999998E-3]
[]
[]
[]
[" 3.6 ","Código","Banco","Descrição","Tipo",null,"Und","Quant.","Valor Unit","Total"]
["Composição"," 93596 ","SINAPI","TRANSPORTE COM CAMINHÃO BASCULANTE DE 10 M³, EM VIA URBANA PAVIMENTADA, ADICIONAL PARA DMT EXCEDENTE A 30 KM (UNIDADE: TXKM). AF_07/2020","TRAN - TRANSPORTES, CARGAS E DESCARGAS",null,"TXKM",1]
["Composição Auxiliar"," 91386 ","SINAPI","CAMINHÃO BASCULANTE 10 M3, TRUCADO CABINE SIMPLES, PESO BRUTO TOTAL 23.000 KG, CARGA ÚTIL MÁXIMA 15.935 KG, DISTÂNCIA ENTRE EIXOS 4,80 M, POTÊNCIA 230 CV INCLUSIVE CAÇAMBA METÁLICA - CHP DIURNO. AF_06/2014","CHOR - CUSTOS HORÁRIOS DE MÁQUINAS E EQUIPAMENTOS",null,"CHP",2.2000000000000001E-3]
["Composição Auxiliar"," 91387 ","SINAPI","CAMINHÃO BASCULANTE 10 M3, TRUCADO CABINE SIMPLES, PESO BRUTO TOTAL 23.000 KG, CARGA ÚTIL MÁXIMA 15.935 KG, DISTÂNCIA ENTRE EIXOS 4,80 M, POTÊNCIA 230 CV INCLUSIVE CAÇAMBA METÁLICA - CHI DIURNO. AF_06/2014","CHOR - CUSTOS HORÁRIOS DE MÁQUINAS E EQUIPAMENTOS",null,"CHI",1E-3]
[]
[]
[]
[" 4.4 ","Código","Banco","Descrição","Tipo",null,"Und","Quant.","Valor Unit","Total"]
["Composição"," 102330 ","SINAPI","TRANSPORTE COM CAMINHÃO TANQUE DE TRANSPORTE DE MATERIAL ASFÁLTICO DE 30000 L, EM VIA URBANA PAVIMENTADA, DMT ATÉ 30KM (UNIDADE: TXKM). AF_07/2020","TRAN - TRANSPORTES, CARGAS E DESCARGAS",null,"TXKM",1]
["Composição Auxiliar"," 91646 ","SINAPI","CAMINHÃO DE TRANSPORTE DE MATERIAL ASFÁLTICO 30.000 L, COM CAVALO MECÂNICO DE CAPACIDADE MÁXIMA DE TRAÇÃO COMBINADO DE 66.000 KG, POTÊNCIA 360 CV, INCLUSIVE TANQUE DE ASFALTO COM SERPENTINA - CHI DIURNO. AF_08/2015","CHOR - CUSTOS HORÁRIOS DE MÁQUINAS E EQUIPAMENTOS",null,"CHI",1.1999999999999999E-3]
["Composição Auxiliar"," 91645 ","SINAPI","CAMINHÃO DE TRANSPORTE DE MATERIAL ASFÁLTICO 30.000 L, COM CAVALO MECÂNICO DE CAPACIDADE MÁXIMA DE TRAÇÃO COMBINADO DE 66.000 KG, POTÊNCIA 360 CV, INCLUSIVE TANQUE DE ASFALTO COM SERPENTINA - CHP DIURNO. AF_08/2015","CHOR - CUSTOS HORÁRIOS DE MÁQUINAS E EQUIPAMENTOS",null,"CHP",2.8E-3]
[]
[]
[]
[" 4.5 ","Código","Banco","Descrição","Tipo",null,"Und","Quant.","Valor Unit","Total"]
["Composição"," 102331 ","SINAPI","TRANSPORTE COM CAMINHÃO TANQUE DE TRANSPORTE DE MATERIAL ASFÁLTICO DE 30000 L, EM VIA URBANA PAVIMENTADA, ADICIONAL PARA DMT EXCEDENTE A 30 KM (UNIDADE: TXKM). AF_07/2020","TRAN - TRANSPORTES, CARGAS E DESCARGAS",null,"TXKM",1]
["Composição Auxiliar"," 91646 ","SINAPI","CAMINHÃO DE TRANSPORTE DE MATERIAL ASFÁLTICO 30.000 L, COM CAVALO MECÂNICO DE CAPACIDADE MÁXIMA DE TRAÇÃO COMBINADO DE 66.000 KG, POTÊNCIA 360 CV, INCLUSIVE TANQUE DE ASFALTO COM SERPENTINA - CHI DIURNO. AF_08/2015","CHOR - CUSTOS HORÁRIOS DE MÁQUINAS E EQUIPAMENTOS",null,"CHI",5.0000000000000001E-4]
["Composição Auxiliar"," 91645 ","SINAPI","CAMINHÃO DE TRANSPORTE DE MATERIAL ASFÁLTICO 30.000 L, COM CAVALO MECÂNICO DE CAPACIDADE MÁXIMA DE TRAÇÃO COMBINADO DE 66.000 KG, POTÊNCIA 360 CV, INCLUSIVE TANQUE DE ASFALTO COM SERPENTINA - CHP DIURNO. AF_08/2015","CHOR - CUSTOS HORÁRIOS DE MÁQUINAS E EQUIPAMENTOS",null,"CHP",1.1000000000000001E-3]
[]
[]
[]
[" 5.1 ","Código","Banco","Descrição","Tipo",null,"Und","Quant.","Valor Unit","Total"]
["Composição"," 5213440 ","SICRO3","Fornecimento e implantação de placa de regulamentação em aço D = 0,60 m - película retrorrefletiva tipo I + SI","",null,"un"]
["A","Código","Banco","Equipamentos","Quantidade","Utilização",null,"Custo Operacional",null,"Custo Horário"]
[{"$nulls":5},"Operativa","Improdutiva","Operativa","Improdutiva"]
["Insumo","E9687","SICRO3","Caminhão carroceria com capacidade de 5 t - 115 kW",1,0.3,0.7]
[{"$nulls":6},"Custo Horário de Equipamentos =>"]
["B","Código","Banco","Mão de Obra","Quantidade","Salário Hora",null,null,null,"Custo Horário"]
["Insumo","P9830","SICRO3","Montador",1]
["Insumo","P9824","SICRO3","Servente",2]
[{"$nulls":6},"Custo Horário da Mão de Obra =>"]
[{"$nulls":6},"Adc.M.O. - Ferramentas ( 0,0%) =>"]
[{"$nulls":6},"Custo Horário de Execução =>"]
[{"$nulls":6},"Fator de Influencia da Chuva - FIC =>"]
[{"$nulls":6},"Custo do FIC =>"]
[{"$nulls":6},"Produção de Equipe =>"]
[{"$nulls":6},"Custo Unitário de Execução =>"]
["D","Banco","Código","Atividades Auxiliares","Quantidade","Unidade","Preço Unitário",null,null,"Custo Horário"]
["Atividade Auxiliar","SICRO3",5213414,"Placa em aço nº 16 galvanizado com película retrorrefletiva tipo I + SI - confecção",0.36,"m²"]
[{"$nulls":6},"Custo Total das Atividades =>"]
[]
[]
[]
[" 5.2 ","Código","Banco","Descrição","Tipo",null,"Und","Quant.","Valor Unit","Total"]
["Composição"," 5213851 ","SICRO3","Fornecimento e implantação de suporte metálico galvanizado para placa de regulamentação - D = 0,60 m","",null,"un",1]
["A","Código","Banco","Equipamentos","Quantidade","Utilização",null,"Custo Operacional",null,"Custo Horário"]
[{"$nulls":5},"Operativa","Improdutiva","Operativa","Improdutiva"]
["Insumo","E9687","SICRO3","Caminhão carroceria com capacidade de 5 t - 115 kW",1,0.3,0.7]
[{"$nulls":6},"Custo Horário de Equipamentos =>"]
["B","Código","Banco","Mão de Obra","Quantidade","Salário Hora",null,null,null,"Custo Horário"]
["Insumo","P9823","SICRO3","Serralheiro",1]
["Insumo","P9824","SICRO3","Servente",1]
[{"$nulls":6},"Custo Horário da Mão de Obra =>"]
[{"$nulls":6},"Adc.M.O. - Ferramentas ( 0,0%) =>"]
[{"$nulls":6},"Custo Horário de Execução =>"]
[{"$nulls":6},"Fator de Influencia da Chuva - FIC =>"]
[{"$nulls":6},"Custo do FIC =>"]
[{"$nulls":6},"Produção de Equipe =>"]
[{"$nulls":6},"Custo Unitário de Execução =>"]
["C","Banco","Código","Material","Quantidade","Unidade","Preço Unitário",null,null,"Custo Horário"]
["Insumo","SICRO3","M0789","Conjunto de cantoneiras e parafusos galvanizados para fixação de placas",1.0581199999999999,"kg"]
["Insumo","SICRO3","M0787","Suporte em aço carbono galvanizado perfil \"C\"",11.775,"kg"]
[{"$nulls":6},"Custo Total do Material =>"]
["D","Banco","Código","Atividades Auxiliares","Quantidade","Unidade","Preço Unitário",null,null,"Custo Horário"]
["Atividade Auxiliar","SICRO3",1107892,"Concreto fck = 20 MPa - confecção em betoneira e lançamento manual - areia e brita comerciais",1.7999999999999999E-2,"m³"]
["Atividade Auxiliar","SICRO3",4805750,"Escavação manual em material de 1ª categoria na profundidade de até 1 m",1.7999999999999999E-2,"m³"]
[{"$nulls":6},"Custo Total das Atividades =>",null,null,6.6383999999999999]
["E","Banco","Insumo","Tempos Fixos","Código","Quantidade","Unidade","Preço Unitário",null,"Custo Horário"]
["Tempo Fixo","SICRO3","M0789","Carga, manobra e descarga de materiais diversos em caminhão carroceria de 5 t - carga e descarga manuais",5915474,1.06E-3,"t"]
["Tempo Fixo","SICRO3",4805750,"Carga, manobra e descarga de agregados ou solos em caminhão basculante de 6 m³ - carga manual e descarga livre",5915476,3.3750000000000002E-2,"t"]
["Tempo Fixo","SICRO3","M0787","Carga, manobra e descarga de materiais diversos em caminhão carroceria de 5 t - carga e descarga manuais",5915474,1.1780000000000001E-2,"t"]
[{"$nulls":6},"Custo Total dos Tempos Fixos =>"]
[]
[]
[]
[" 6.1 ","Código","Banco","Descrição","Tipo",null,"Und","Quant.","Valor Unit","Total"]
["Composição"," 2003373 ","SICRO3","Meio fio de concreto - MFC 03 - areia e brita comerciais - fôrma de madeira","",null,"m",1]
[{"$nulls":6},"Custo Horário de Execução =>"]
[{"$nulls":6},"Fator de Influencia da Chuva - FIC =>"]
[{"$nulls":6},"Custo do FIC =>"]
[{"$nulls":6},"Produção de Equipe =>"]
[{"$nulls":6},"Custo Unitário de Execução =>"]
["D","Banco","Código","Atividades Auxiliares","Quantidade","Unidade","Preço Unitário",null,null,"Custo Horário"]
["Atividade Auxiliar","SICRO3",1107892,"Concreto fck = 20 MPa - confecção em betoneira e lançamento manual - areia e brita comerciais",4.2000000000000003E-2,"m³"]
["Atividade Auxiliar","SICRO3",2003842,"Enchimento de junta de concreto com argamassa asfáltica de densidade 1.700 kg/m³ - espessura de 1 cm",5.9499999999999997E-2,"kg"]
["Atividade Auxiliar","SICRO3",3103302,"Fôrmas de tábuas de pinho para dispositivos de drenagem - utilização de 3 vezes - confecção, instalação e retirada",8.6699999999999999E-2,"m²"]
["Atividade Auxiliar","SICRO3",4805750,"Escavação manual em material de 1ª categoria na profundidade de até 1 m",0.03,"m³"]
[{"$nulls":6},"Custo Total das Atividades =>"]
[]
[]
[]
[" 7.1 ","Código","Banco","Descrição","Tipo",null,"Und","Quant.","Valor Unit","Total"]
["Composição"," 9345 ","ORSE","Levantamento topográfico planimétrico de rua (via pública) e semi - cadastro de imóveis","Locação de Serviços de Terraplenagem e Acompanhamento Topográfico da Obra",null,"m",1]
["Insumo"," 48 ","ORSE","Auxiliar topografia - T4 - Segundo grau completo - DNIT -  Mês de ref.: 02/20","Mão de Obra",null,"h",4.4200000000000003E-2]
["Insumo"," 70 ","ORSE","Topografo - T2 - Fonte DNIT -  Mês de ref.: 02/20","Mão de Obra",null,"h",2.2100000000000002E-2]
["Insumo"," 4415 ","ORSE","Veículo leve - Volkswagen:GOL 1000 - automóvel até 100 hp","Equipamento",null,"h",1.4E-2]
["Insumo"," 5931 ","ORSE","Técnico cadastro TÉCNICO CADASTRO","Mão de Obra",null,"h",1.6E-2]
["Insumo"," 6443 ","ORSE","TEODOLITO","Equipamento",null,"H",2.2100000000000002E-2]
["Insumo"," 6694 ","ORSE","Desenhista Júnior (Cadista Copista) - Técnico de Nível médio até 5 anos de experiência - Rev 01","Mão de Obra",null,"h",8.0000000000000002E-3]
[]
[]
[]
[" 7.3 ","Código","Banco","Descrição","Tipo",null,"Und","Quant.","Valor Unit","Total"]
["Composição"," CODEVASF  226 ","Próprio","Ensaios geotécnicos (CDVSF)","SERT - SERVIÇOS TÉCNICOS",null,"m²",1]
["Composição Auxiliar"," 74022/010 ","SINAPI","ENSAIO DE COMPACTACAO - AMOSTRAS NAO TRABALHADAS - ENERGIA NORMAL - SOLOS","SERT - SERVIÇOS TÉCNICOS",null,"UN",2E-3]
["Composição Auxiliar"," 74022/019 ","SINAPI","ENSAIO DE INDICE DE SUPORTE CALIFORNIA - AMOSTRAS NAO TRABALHADAS - ENERGIA NORMAL - SOLOS","SERT - SERVIÇOS TÉCNICOS",null,"UN",2E-3]
["Composição Auxiliar"," 74022/008 ","SINAPI","ENSAIO DE LIMITE DE LIQUIDEZ - SOLOS","SERT - SERVIÇOS TÉCNICOS",null,"UN",2E-3]
["Composição Auxiliar"," 74022/023 ","SINAPI","ENSAIO DE TEOR DE UMIDADE - PROCESSO SPEEDY - SOLOS E AGREGADOS MIUDOS","SERT - SERVIÇOS TÉCNICOS",null,"UN",2E-3]
["Composição Auxiliar"," 4681 ","ORSE","Sondagem à pá e picareta","Locação de Serviços de Terraplenagem e Acompanhamento Topográfico da Obra",null,"m",2E-3]
["Composição Auxiliar"," 050102 ","AGETOP CIVIL","TRANSPORTE EQUIPAMENTOS P/SONDAGEM ( INCLUSO NO VALOR O RETORNO) ",5,null,"Km",0.04]
["Composição Auxiliar"," 74022/006 ","SINAPI","ENSAIO DE GRANULOMETRIA POR PENEIRAMENTO - SOLOS","SERT - SERVIÇOS TÉCNICOS",null,"UN",2E-3]
["Insumo"," E200340110 ","EMBASA","DETERMINACAO DE LIMITE DE PLASTICIDADE (NBR - 07180)","Serviços",null,"UN",2E-3]
["Insumo"," 12322 ","ORSE","Ensaio - Determinação da massa aparente in situ do solo","Serviços",null,"un",2E-3]
["Insumo"," 12320 ","ORSE","Coleta de amostra de solo in loco ( para ensaio)","Serviços",null,"un",2E-3]
[]
[]
[]
[]
[null,"Código","Banco","Descrição","Tipo",null,"Und","Quant.","Valor Unit","Total"]
["Composição"," 6416078 ","SICRO3","Usinagem de concreto asfáltico - faixa C - areia e brita comerciais","",null,"t"]
["A","Código","Banco","Equipamentos","Quantidade","Utilização",null,"Custo Operacional",null,"Custo Horário"]
[{"$nulls":5},"Operativa","Improdutiva","Operativa","Improdutiva"]
["Insumo","E9559","SICRO3","Aquecedor de fluido térmico - 12 kW",1,1,0]
["Insumo","E9584","SICRO3","Carregadeira de pneus com capacidade de 1,72 m³ - 113 kW",1,0.8,0.2]
["Insumo","E9021","SICRO3","Grupo gerador - 456 kVA",1,1,0]
["Insumo","E9558","SICRO3","Tanque de estocagem de asfalto com capacidade de 30.000 l",2,1,0]
["Insumo","E9689","SICRO3","Usina de asfalto a quente gravimétrica com capacidade de 100/140 t/h - 260 kW",1,1,0]
[{"$nulls":6},"Custo Horário de Equipamentos =>"]
["B","Código","Banco","Mão de Obra","Quantidade","Salário Hora",null,null,null,"Custo Horário"]
["Insumo","P9824","SICRO3","Servente",4]
[{"$nulls":6},"Custo Horário da Mão de Obra =>"]
[{"$nulls":6},"Adc.M.O. - Ferramentas ( 0,0%) =>"]
[{"$nulls":6},"Custo Horário de Execução =>"]
[{"$nulls":6},"Fator de Influencia da Chuva - FIC =>"]
[{"$nulls":6},"Custo do FIC =>"]
[{"$nulls":6},"Produção de Equipe =>"]
[{"$nulls":6},"Custo Unitário de Execução =>"]
["C","Banco","Código","Material","Quantidade","Unidade","Preço Unitário",null,null,"Custo Horário"]
["Insumo","SICRO3","M0028","Areia média",0.32704,"m³"]
["Insumo","SICRO3","M0005","Brita 0",0.12579000000000001,"m³"]
["Insumo","SICRO3","M0344","Cal hidratada - a granel",56.603769999999997,"kg"]
["Insumo","SICRO3","M1941","Óleo combustível 1A",8,"l"]
["Insumo","SICRO3","M1103","Pedrisco",0.13836000000000001,"m³"]
[{"$nulls":6},"Custo Total do Material =>"]
["E","Banco","Insumo","Tempos Fixos","Código","Quantidade","Unidade","Preço Unitário",null,"Custo Horário"]
["Tempo Fixo","SICRO3","M0028","Carga, manobra e descarga de agregados ou solos em caminhão basculante de 10 m³ - carga com carregadeira de 3,40 m³",5914647,0.48713000000000001,"t"]
["Tempo Fixo","SICRO3","M0005","Carga, manobra e descarga de agregados ou solos em caminhão basculante de 10 m³ - carga com carregadeira de 3,40 m³",5914647,9.3679999999999999E-2,"t"]
["Tempo Fixo","SICRO3","M0191","Carga, manobra e descarga de agregados ou solos em caminhão basculante de 10 m³ - carga com carregadeira de 3,40 m³",5914647,9.3679999999999999E-2,"t"]
["Tempo Fixo","SICRO3","M0344","Carga, manobra e descarga de cimento a granel em caminhão silo de 30 m³",5914363,5.62E-2,"t"]
["Tempo Fixo","SICRO3","M1103","Carga, manobra e descarga de agregados ou solos em caminhão basculante de 10 m³ - carga com carregadeira de 3,40 m³",5914647,0.20609,"t"]

{"sheet":"MEMÓRIA DE CÁLCULO GERAL","index":3,"n_rows":165,"n_cols":9,"rows_kept":165,"cut":false,"hidden":false,"merged":[[2,0,2,7]]}
["SERVIÇO: Execução de CBUQ em vias públicas - SRP",{"$nulls":5},"DATA BASE: "]
["LOCAL: MUNICÍPIOS DIVERSOS, ESTADO DE SERGIPE",{"$nulls":5},"BDI:",{"$f":"'RESUMO DO ORÇAMENTO'!H2","v":0}]
["MEMÓRIA DE CÁLCULO GERAL"]
[]
["LARGURA DA RUA: ",null,7,"m"]
["COMPRIMENTO DA RUA 1 MÓDULO:",null,2000,"m"]
["1 MÓDULO DE RUA: ",null,{"$f":"C5*C6","v":14000},"m²"]
["TOTAL DE LOCALIDADES PREVISTO (POR MÓDULO):",null,1,"und"]
[]
[]
[null,"MOBILIZAÇÃO E DESMOBILIZAÇÃO"]
[]
[null,"1 Unidade"]
[]
[null,"COMPOSIÇÃO DE CUSTO:"]
[null,"Pick-up, capacidade 1,2 t","4 horas (com o carro) x 2 (nº de veículos) x 2=",{"$nulls":4},{"$f":"ROUND(4*2*2,2)","v":16},"horas"]
[null,"Caminhão Carroceria de madeira 9 t - fonte:DNIT","4 horas (com o carro) x 4 (localidades) x 2 (ida e volta) x 2=",{"$nulls":4},{"$f":"ROUND(4*4*2*2,2)","v":64},"horas"]
[null,"Gasolina comum","200 (km rodado) x 2 (nº de veículos) / 10 (km/L) x 2=",{"$nulls":4},{"$f":"ROUND(200*2*2/10,2)","v":80},"litros"]
[null,"Óleo diesel","200 (km rodado) x  4 (localidades) x 2 (ida e volta)/ 10 (km/L) x 2=",{"$nulls":4},{"$f":"ROUND(200*4*2*2/10,2)","v":320},"litros"]
[]
[null,"PLACA DE OBRA"]
[]
[null,"1 (placa) x (3,6x1,8) (m²/placa) x 1 (localidades) = ",{"$f":"ROUND(1*(3.6*1.8)*1,2)","v":6.48},"m²"]
[]
[null,"       "]
[null,"ADMINISTRAÇÃO LOCAL"]
[]
[null,"1 Unidade"]
[]
[null,"COMPOSIÇÃO DE CUSTO:"]
[null,"Aluguel mensal de área",null,null,1,"mês"]
[null,"Água - dispêndio mensal",null,null,1,"mês"]
[null,"Consumo de energia elétrica",null,null,1,"mês"]
[null,"Pick-up, capacidade 1,2 t","10 (horas) x 30(dias) x 2 (1 eng + 1 enc) x 1 (meses) = ",null,null,null,{"$f":"ROUND(10*30*2*1,2)","v":600},"horas"]
[null,"GASOLINA COMUM","90 (litros/mês) x 1 (meses) x 2 (veículos)= ",null,null,null,{"$f":"ROUND(90*1*2,2)","v":180},"litros"]
[null,"ENGENHEIRO CIVIL","0,5 (engenheiro ) x 1 (mês) = ",null,null,null,0.5,"meses"]
[null,"ENCARREGADO GERAL","1 (encarregado)  = ",null,null,null,1,"meses"]
[]
[null,"LOCAÇÃO DOS SERVIÇOS DE TERRAPLENAGEM"]
[]
[null,"Área do módulo mínimo",{"$f":"C7","v":14000},"m²"]
[]
[null,"REGULARIZACAO DE SUPERFICIES"]
[]
[null,"Área do módulo mínimo",{"$f":"C41","v":14000},"m²"]
[]
[null,"REGULARIZAÇÃO E COMPACTAÇÃO DE SUBLEITO DE SOLO  PREDOMINANTEMENTE ARGILOSO"]
[]
[null,"10% da Área do módulo mínimo",{"$f":"C45*0.1","v":1400},"m²"]
[]
[null,"REGULARIZAÇÃO E COMPACTAÇÃO DE SUBLEITO DE SOLO PREDOMINANTEMENTE ARENOSO"]
[]
[null,"10% da Área do módulo mínimo",{"$f":"C45*0.1","v":1400},"m²"]
[]
[null,"EXECUÇÃO E COMPACTAÇÃO DE BASE E OU SUB BASE"]
[]
[null,"15 cm (espessura) x 20% da área módulo mínimo",{"$f":"C7*0.2*0.15","v":420},"m³"]
[]
[null,"ESCAVAÇÃO"]
[]
[null,"1,11 (fator de homogenização) x volume de sub-base",{"$f":"1.15*C57","v":482.99999999999994},"m³"]
[]
[null,"TRANSPORTE"]
[]
[null,"1,20 (fator de empolamento) x volume escavado x 15km (distância)",{"$f":"1.2*C61*15","v":8693.9999999999982},"m³"]
[]
[null,"AQUISIÇÃO DE MATERIAL"]
[]
[null,"15 cm (espessura) x 20% da área módulo mínimo",{"$f":"C7*0.2*0.15","v":420},"m³"]
[]
[null,"IMPRIMAÇÃO"]
[]
[null,"Área do módulo mínimo",{"$f":"C7","v":14000},"m²"]
[]
[null,"VARREDURA"]
[]
[null,"Área do módulo mínimo",{"$f":"C73","v":14000},"m²"]
[]
[null,"PINTURA DE LIGAÇÃO"]
[]
[null,"Área do módulo mínimo",{"$f":"C77","v":14000},"m²"]
[]
[null,"CBUQ"]
[]
[null,"0,05m x Área do módulo mínimo x 2,425 t/m³(densidade)",{"$f":"TRUNC(0.05*C81*2.425,2)","v":1697.5},"t"]
[]
[null,"TRANSPORTE DE MASSA ASFÁLTICA, DMT ATÉ 30KM"]
[]
[null,"Massa asfáltica",{"$f":"C85","v":1697.5},"t"]
[null,"distância (distribuidora até a obra)",30,"km"]
[null,"DMT",{"$f":"TRUNC(C89*C90,2)","v":50925},"txkm"]
[]
[null,"TRANSPORTE DE MASSA ASFÁLTICA, DMT EXCEDENTE A 30KM"]
[]
[null,"Massa asfáltica",{"$f":"C85","v":1697.5},"t"]
[null,"distância (distribuidora até a obra)",{"$f":"100-30","v":70},"km"]
[null,"DMT",{"$f":"TRUNC(C95*C96,2)","v":118825},"txkm"]
[]
[null,"AQUISIÇÃO DE EMULSÃO PARA IMPRIMAÇÃO"]
[]
[null,"0,0013T (consumo) x área (imprimação)",{"$f":"TRUNC(0.0013*C7,2)","v":18.2},"t"]
[]
[null,"AQUISIÇÃO DE EMULSÃO ASFLATÍCA RR-1C"]
[]
[null,"0,00045T (consumo) x ÁREA",{"$f":"TRUNC(0.00045*C7,2)","v":6.3},"t"]
[]
[null,"AQUISIÇÃO DE CIMENTO ASFALTÍCO"]
[]
[null,"0,0566T (consumo) x CBUQ",{"$f":"TRUNC(0.0566*C85,2)","v":96.07},"t"]
[]
[null,"TRANSPORTE DE MATERIAL ASFÁLTICO, DMT ATÉ 30KM"]
[]
[null,"emulsão p/ imprimação x área (imprimação)",{"$f":"C101","v":18.2},"t"]
[null,"emulsão asfáltica x área",{"$f":"C105","v":6.3},"t"]
[null,"cap 50/70",{"$f":"C109","v":96.07}]
[null,"distância (distribuidora até a obra)",30,"km"]
[null,"DMT",{"$f":"TRUNC((C113+C114+C115)*C116,2)","v":3617.1},"txkm"]
[]
[null,"TRANSPORTE DE MATERIAL ASFÁLTICO, DMT EXCEDENTE A 30KM"]
[]
[null,"emulsão p/ imprimação x área (imprimação)",{"$f":"C101","v":18.2},"t"]
[null,"emulsão asfáltica x área",{"$f":"C105","v":6.3},"t"]
[null,"cap 50/70",{"$f":"C109","v":96.07}]
[null,"distância (distribuidora até a obra)",{"$f":"400-30","v":370},"km"]
[null,"DMT",{"$f":"TRUNC((C121+C122+C123)*C124,2)","v":44610.9},"txkm"]
[]
[null,"FORNECIMENTO DE PLACA"]
[]
[null,"Sinalização",{"$f":"C6/500","v":4},"und"]
[]
[null,"FORNECIMENTO DE SUPORTE PARA PLACA"]
[]
[null,"Sinalização",{"$f":"C129","v":4},"und"]
[]
[null,"ESCAVAÇÃO MANUAL DE VALA"]
[]
[null,"10 (comprimento) x 1 (profundidade) x 0,8 (largura) = ",{"$f":"10*1*0.8","v":8},"m³"]
[]
[null,"TUBO DE CONCRETO"]
[]
[null,"10 (comprimento)",10,"m"]
[]
[null,"REATERRO MANUAL"]
[]
[null,"volume escavação - volume do tubo",{"$f":"ROUND(C137-10*3.15*0.3^2,2)","v":5.17},"m³"]
[]
[null,"BOCA PARA BUEIRO SIMPLES TUBULAR"]
[]
[null,"2 unidades p/ bueiro",2,"und"]
[]
[null,"SARJETA"]
[]
[null,"10% do trecho (proteção em cortes)",{"$f":"0.1*C6","v":200},"und"]
[]
[null,"LEVANTAMENTO PLANIALTIMÉTRICO "]
[]
[null,"comprimento total = ",{"$f":"C6","v":2000},"m"]
[]
[null,"PROJETO DE PAVIMENTAÇÃO"]
[]
[null,"Área do módulo mínimo",{"$f":"C6/1000","v":2},"km"]
[]
[null,"ENSAIOS DE PAVIMENTAÇÃO"]
[]
[null,"Área do módulo mínimo",{"$f":"C7","v":14000},"m²"]

{"sheet":"Cronograma Físico-financeiro","index":4,"n_rows":12,"n_cols":31,"rows_kept":12,"cut":false,"hidden":false,"merged":[[0,0,0,4],[1,0,1,4],[3,0,3,6],[5,9,5,10],[5,11,5,12],[3,15,3,22],[3,23,3,30],[3,7,3,14],[5,5,5,6],[5,7,5,8],[5,15,5,16],[5,27,5,28],[5,19,5,20],[5,17,5,18],[5,29,5,30],[5,13,5,14],[5,21,5,22],[5,23,5,24],[5,25,5,26]]}
["SERVIÇO: Execução de CBUQ em vias públicas - SRP",{"$nulls":4},"DATA BASE: ",null,"SERVIÇO: Execução de CBUQ em vias públicas - SRP",{"$nulls":5},"DATA BASE: ",null,"SERVIÇO: Execução de CBUQ em vias públicas - SRP",{"$nulls":5},"DATA BASE: ",{"$f":"O1","v":"00:00:00"},"SERVIÇO: Execução de CBUQ em vias públicas - SRP",{"$nulls":5},"DATA BASE: "]
[{"$f":"'RESUMO DO ORÇAMENTO'!A2","v":"LOCAL: MUNICÍPIOS DIVERSOS, ESTADO DE SERGIPE"},{"$nulls":4},"BDI:",{"$f":"'RESUMO DO ORÇAMENTO'!H2","v":0},"LOCAL: MUNICÍPIOS DIVERSOS, ESTADO DE SERGIPE",{"$nulls":5},"BDI:",{"$f":"G2","v":0},"LOCAL: MUNICÍPIOS DIVERSOS, ESTADO DE SERGIPE",{"$nulls":5},"BDI:",{"$f":"O2","v":0},"LOCAL: MUNICÍPIOS DIVERSOS, ESTADO DE SERGIPE",{"$nulls":5},"BDI:",{"$f":"W2","v":0}]
[]
["DOCUMENTO: CRONOGRAMA",{"$nulls":6},"DOCUMENTO: CRONOGRAMA",{"$nulls":7},"DOCUMENTO: CRONOGRAMA",{"$nulls":7},"DOCUMENTO: CRONOGRAMA"]
[]
["ITEM","DESCRIÇÃO","UNIDADE","QUANTIDADE","PREÇO TOTAL"," 1.º PERÍODO ",null," 2.º PERÍODO ",null,"3.º PERÍODO ",null,"4.º PERÍODO ",null,"5.º PERÍODO ",null,"6.º PERÍODO ",null,"7.º PERÍODO ",null,"8.º PERÍODO ",null,"9.º PERÍODO ",null,"10.º PERÍODO ",null,"11.º PERÍODO ",null,"12.º PERÍODO ",null,"TOTAL"]
[{"$nulls":5},"PERCENTUAL","FINANCEIRO","PERCENTUAL","FINANCEIRO","PERCENTUAL","FINANCEIRO","PERCENTUAL","FINANCEIRO","PERCENTUAL","FINANCEIRO","PERCENTUAL","FINANCEIRO","PERCENTUAL","FINANCEIRO","PERCENTUAL","FINANCEIRO","PERCENTUAL","FINANCEIRO","PERCENTUAL","FINANCEIRO","PERCENTUAL","FINANCEIRO","PERCENTUAL","FINANCEIRO","PERCENTUAL","FINANCEIRO"]
[]
[1,{"$f":"'RESUMO DO ORÇAMENTO'!B10","v":"PAVIMENTAÇÃO ASFÁLTICA (CBUQ) DE VIAS PÚBLICAS EM MUNICÍPIOS DIVERSOS DO ESTADO DE SERGIPE"},"%",1,{"$f":"'RESUMO DO ORÇAMENTO'!H10","v":0},0.02,{"$f":"F9*$E9","v":0},0.03,{"$f":"H9*$E9","v":0},0.05,{"$f":"J9*$E9","v":0},0.1,10,0.1,{"$f":"N9*$E9","v":0},0.1,{"$f":"P9*$E9","v":0},0.1,{"$f":"R9*$E9","v":0},0.1,{"$f":"T9*$E9","v":0},0.1,{"$f":"V9*$E9","v":0},0.1,{"$f":"X9*$E9","v":0},0.1,{"$f":"Z9*$E9","v":0},0.1,{"$f":"AB9*$E9","v":0},{"$f":"F9+H9+J9+L9+N9+P9+R9+T9+V9+X9+Z9+AB9","v":0.99999999999999989},{"$f":"AD9*$E9","v":0}]
[]
[]
[null,null,null,"TOTAL",{"$f":"SUM(E8:E11)","v":0},{"$f":"G12/$E$12","v":{"$error":"#DIV/0!"}},{"$f":"SUM(G8:G11)","v":0},{"$f":"I12/$E$12","v":{"$error":"#DIV/0!"}},{"$f":"SUM(I8:I11)","v":0},{"$f":"K12/$E$12","v":{"$error":"#DIV/0!"}},{"$f":"SUM(K8:K11)","v":0},{"$f":"M12/$E$12","v":{"$error":"#DIV/0!"}},{"$f":"SUM(M8:M11)","v":10},{"$f":"O12/$E$12","v":{"$error":"#DIV/0!"}},{"$f":"SUM(O8:O11)","v":0},{"$f":"Q12/$E$12","v":{"$error":"#DIV/0!"}},{"$f":"SUM(Q8:Q11)","v":0},{"$f":"S12/$E$12","v":{"$error":"#DIV/0!"}},{"$f":"SUM(S8:S11)","v":0},{"$f":"U12/$E$12","v":{"$error":"#DIV/0!"}},{"$f":"SUM(U8:U11)","v":0},{"$f":"W12/$E$12","v":{"$error":"#DIV/0!"}},{"$f":"SUM(W8:W11)","v":0},{"$f":"Y12/$E$12","v":{"$error":"#DIV/0!"}},{"$f":"SUM(Y8:Y11)","v":0},{"$f":"AA12/$E$12","v":{"$error":"#DIV/0!"}},{"$f":"SUM(AA8:AA11)","v":0},{"$f":"AC12/$E$12","v":{"$error":"#DIV/0!"}},{"$f":"SUM(AC8:AC11)","v":0},{"$f":"AE12/$E$12","v":{"$error":"#DIV/0!"}},{"$f":"SUM(AE8:AE11)","v":0}]

{"sheet":"BDI","index":5,"n_rows":33,"n_cols":3,"rows_kept":33,"cut":false,"hidden":false,"merged":[[3,0,3,2],[5,0,5,2],[7,0,7,2],[19,0,19,2],[32,0,32,1]]}
["SERVIÇO: Execução de CBUQ em vias públicas - SRP"]
[]
[]
["DOCUMENTO: DETALHAMENTO DA BONIFICAÇÃO E DESPESAS INDIRETAS"]
[]
["FÓRMULA APLICADA"]
[]
["BDI = { [ ( 1 + AC / 100  + R / 100 + SG/100 ) . ( 1 + DF / 100 ) . ( 1 + L / 100 ) / ( 1 - I / 100 ) ] - 1 } . 100"]
[]
["ONDE:"]
["BDI =","Bonificação e Despesas Indiretas"]
["AC =","Administração Central"]
["SG=","Seguros e garantias"]
["DF =","Despesas Financeiras"]
["R =","Riscos"]
["L =","Lucro"]
["I =","Impostos"]
[]
[]
["EXECUÇÃO DE SERVIÇOS"]
[]
["ITEM","DESCRIÇÃO","PERCENTUAIS    (%)"]
[1,"Administração Central"]
[2,"Seguros e garantias"]
[3,"Riscos"]
[4,"Despesas Financeiras"]
[5,"Lucro"]
[6,"Impostos",{"$f":"SUM(C29:C32)","v":0}]
["6.1","PIS"]
["6.2","COFINS"]
["6.3","ISS"]
["6.4","IPRB"]
["BDI",null,{"$f":"ROUND((((1+C23/100+C24/100+C25/100)*(1+C26/100)*(1+C27/100))/(1-C28/100))-1,4)","v":0}]

{"sheet":"BDI FORN.","index":6,"n_rows":33,"n_cols":3,"rows_kept":33,"cut":false,"hidden":false,"merged":[[3,0,3,2],[5,0,5,2],[7,0,7,2],[19,0,19,2],[32,0,32,1]]}
["SERVIÇO: Execução de CBUQ em vias públicas - SRP"]
[]
[]
["DOCUMENTO: DETALHAMENTO DA BONIFICAÇÃO E DESPESAS INDIRETAS"]
[]
["FÓRMULA APLICADA"]
[]
["BDI = { [ ( 1 + AC / 100  + R / 100 + SG/100 ) . ( 1 + DF / 100 ) . ( 1 + L / 100 ) / ( 1 - I / 100 ) ] - 1 } . 100"]
[]
["ONDE:"]
["BDI =","Bonificação e Despesas Indiretas"]
["AC =","Administração Central"]
["SG=","Seguros e garantias"]
["DF =","Despesas Financeiras"]
["R =","Riscos"]
["L =","Lucro"]
["I =","Impostos"]
[]
[]
["EXECUÇÃO DE SERVIÇOS"]
[]
["ITEM","DESCRIÇÃO","PERCENTUAIS    (%)"]
[1,"Administração Central"]
[2,"Seguros e garantias"]
[3,"Riscos"]
[4,"Despesas Financeiras"]
[5,"Lucro"]
[6,"Impostos",{"$f":"SUM(C29:C32)","v":0}]
["6.1","PIS"]
["6.2","COFINS"]
["6.3","ISS"]
["6.4","IPRB"]
["BDI",null,{"$f":"ROUND((((1+C23/100+C24/100+C25/100)*(1+C26/100)*(1+C27/100))/(1-C28/100))-1,4)","v":0}]

{"sheet":"ENCARGOS SOCIAIS","index":7,"n_rows":48,"n_cols":6,"rows_kept":48,"cut":false,"hidden":false,"merged":[[21,0,21,5],[34,0,34,5],[42,0,42,5],[46,0,46,5],[47,0,47,1],[9,0,9,5],[5,0,5,5],[6,0,7,0],[6,1,7,1],[6,2,6,3],[6,4,6,5]]}
["SERVIÇO: Execução de CBUQ em vias públicas - SRP",null,null,null,"DATA BASE: "]
["LOCAL: MUNICÍPIOS DIVERSOS, ESTADO DE SERGIPE",null,null,null,"BDI:"]
[{"$nulls":4},"BDI FORNECIMENTO:"]
[{"$nulls":5},"Não Desonerado; Horista:  ; Mensalista: "]
[]
["ENCARGOS SOCIAIS SOBRE A MÃO DE OBRA"]
["CÓDIGO","DESCRIÇÃO","COM DESONERAÇÃO",null,"SEM DESONERAÇÃO"]
[null,null,"HORISTA %","MENSALISTA %","HORISTA %","MENSALISTA %"]
[]
["GRUPO A"]
["A1","INSS"]
["A2","SESI"]
["A3","SENAI"]
["A4","INCRA"]
["A5","SEBRAE"]
["A6","Salário Educação"]
["A7","Seguro Contra Acidentes de Trabalho"]
["A8","FGTS"]
["A9","SECONCI"]
["A","Total",{"$f":"SUM(C11:C19)","v":0},{"$f":"SUM(D11:D19)","v":0},{"$f":"SUM(E11:E19)","v":0},{"$f":"SUM(F11:F19)","v":0}]
[]
["GRUPO B"]
["B1","Repouso Semanal Remunerado"]
["B2","Feriados"]
["B3","Auxílio-enfermidade"]
["B4","13° salário"]
["B5","Licença-paternidade"]
["B6","Faltas Justificadas"]
["B7","Dias de chuva"]
["B8","Auxílio Acidente de Trabalho"]
["B9","Férias Gozadas"]
["B10","Salário Maternidade"]
["B","Total ",{"$f":"SUM(C23:C32)","v":0},{"$f":"SUM(D23:D32)","v":0},{"$f":"SUM(E23:E32)","v":0},{"$f":"SUM(F23:F32)","v":0}]
[]
["GRUPO C"]
["C1","Aviso Prévio Indenizado"]
["C2","Aviso Prévio Trabalhado"]
["C3","Férias Indenizadas"]
["C4","Depósito Rescisão Sem Justa Causa"]
["C5","Indenização Adicional"]
["C","Total ",{"$f":"SUM(C36:C40)","v":0},{"$f":"SUM(D36:D40)","v":0},{"$f":"SUM(E36:E40)","v":0},{"$f":"SUM(F36:F40)","v":0}]
[]
["GRUPO D"]
["D1","Reincidência de A sobre B"]
["D2","Reincidência de Grupo A sobre Aviso Prévio Trabalhado e Reincidência do FGTS sobre Aviso Prévio Indenizado"]
["D","Total",{"$f":"SUM(C44:C45)","v":0},{"$f":"SUM(D44:D45)","v":0},{"$f":"SUM(E44:E45)","v":0},{"$f":"SUM(F44:F45)","v":0}]
[]
["T O T A L (%)",null,{"$f":"C20+C33+C41+C46","v":0},{"$f":"D20+D33+D41+D46","v":0},{"$f":"E20+E33+E41+E46","v":0},{"$f":"F20+F33+F41+F46","v":0}]